[Event "Titled Tuesday Blitz October 26 2021"]
[White "Baskin, Robert"]
[Black "Moroni, Luca Jr"]
[WhiteFideId "24662402"]
[BlackFideId "865834"]
[WhiteElo "2521"]
[BlackElo "2491"]
[Result "1-0"]
[Round "08"]
[TimeControl "180+1"]
[Date "2021.10.26"]
[WhiteClock "0:00:07"]
[BlackClock "0:00:02"]

1. e4 {[%clk 0:03:00]}  g6 {[%clk 0:02:59]} 2. d4 {[%clk 0:03:00]}  Bg7 {[%clk 0:02:59]} 3. Nc3 {[%clk 0:03:01]}  d6 {[%clk 0:02:59]} 4. f4 {[%clk 0:03:01]}  Nf6 {[%clk 0:02:59]} 5. Nf3 {[%clk 0:03:01]}  O-O {[%clk 0:03:00]} 6. Bd3 {[%clk 0:03:01]}  Nc6 {[%clk 0:03:00]} 7. e5 {[%clk 0:03:01]}  dxe5 {[%clk 0:03:01]} 8. fxe5 {[%clk 0:03:00]}  Nd5 {[%clk 0:03:00]} 9. Nxd5 {[%clk 0:02:58]}  Qxd5 {[%clk 0:03:00]} 10. c3 {[%clk 0:02:58]}  Bg4 {[%clk 0:02:54]} 11. Qe2 {[%clk 0:02:55]}  Bxf3 {[%clk 0:02:47]} 12. Qxf3 {[%clk 0:02:42]}  Qxf3 {[%clk 0:02:45]} 13. gxf3 {[%clk 0:02:43]}  f6 {[%clk 0:02:35]} 14. f4 {[%clk 0:02:42]}  Bh6 {[%clk 0:02:28]} 15. Ke2 {[%clk 0:02:34]}  fxe5 {[%clk 0:02:27]} 16. fxe5 {[%clk 0:02:33]}  Bxc1 {[%clk 0:02:25]} 17. Raxc1 {[%clk 0:02:33]}  e6 {[%clk 0:02:17]} 18. Rhf1 {[%clk 0:02:28]}  Rxf1 {[%clk 0:02:14]} 19. Rxf1 {[%clk 0:02:27]}  Rf8 {[%clk 0:02:10]} 20. Rxf8+ {[%clk 0:01:49]}  Kxf8 {[%clk 0:02:10]} 21. Be4 {[%clk 0:01:50]}  Nd8 {[%clk 0:02:07]} 22. Ke3 {[%clk 0:01:48]}  Ke7 {[%clk 0:02:05]} 23. Kf4 {[%clk 0:01:47]}  b6 {[%clk 0:02:02]} 24. b4 {[%clk 0:01:44]}  Nf7 {[%clk 0:01:49]} 25. h4 {[%clk 0:01:43]}  Nh6 {[%clk 0:01:46]} 26. h5 {[%clk 0:01:24]}  gxh5 {[%clk 0:01:42]} 27. Kg5 {[%clk 0:01:22]}  Ng4 {[%clk 0:01:36]} 28. Kxh5 {[%clk 0:01:15]}  Ne3 {[%clk 0:01:32]} 29. Kg5 {[%clk 0:01:03]}  Nd1 {[%clk 0:01:30]} 30. c4 {[%clk 0:01:01]}  Nc3 {[%clk 0:01:21]} 31. Bxh7 {[%clk 0:00:54]}  Nxa2 {[%clk 0:01:17]} 32. b5 {[%clk 0:00:54]}  Nb4 {[%clk 0:01:14]} 33. Be4 {[%clk 0:00:47]}  a5 {[%clk 0:01:12]} 34. bxa6 {[%clk 0:00:45]}  Nxa6 {[%clk 0:01:11]} 35. Kf4 {[%clk 0:00:42]}  Kd7 {[%clk 0:00:47]} 36. Ke3 {[%clk 0:00:40]}  c6 {[%clk 0:00:45]} 37. Kd2 {[%clk 0:00:36]}  b5 {[%clk 0:00:41]} 38. Kc3 {[%clk 0:00:31]}  bxc4 {[%clk 0:00:24]} 39. Kxc4 {[%clk 0:00:31]}  Nc7 {[%clk 0:00:24]} 40. Kc5 {[%clk 0:00:27]}  Na6+ {[%clk 0:00:21]} 41. Kb6 {[%clk 0:00:20]}  Nb4 {[%clk 0:00:21]} 42. Kb7 {[%clk 0:00:19]}  Ke7 {[%clk 0:00:18]} 43. Kc7 {[%clk 0:00:19]}  Na6+ {[%clk 0:00:05]} 44. Kxc6 {[%clk 0:00:18]}  Nb8+ {[%clk 0:00:05]} 45. Kc7 {[%clk 0:00:18]}  Nd7 {[%clk 0:00:05]} 46. Bc2 {[%clk 0:00:14]}  Nf8 {[%clk 0:00:05]} 47. Be4 {[%clk 0:00:13]}  Nd7 {[%clk 0:00:05]} 48. Kc6 {[%clk 0:00:13]}  Nf8 {[%clk 0:00:05]} 49. Kb5 {[%clk 0:00:12]}  Nd7 {[%clk 0:00:05]} 50. Kc4 {[%clk 0:00:12]}  Nf8 {[%clk 0:00:05]} 51. Kd3 {[%clk 0:00:12]}  Nd7 {[%clk 0:00:06]} 52. Bc6 {[%clk 0:00:11]}  Nf8 {[%clk 0:00:05]} 53. Ke4 {[%clk 0:00:12]}  Ng6 {[%clk 0:00:05]} 54. Bb5 {[%clk 0:00:11]}  Kf7 {[%clk 0:00:05]} 55. Kf3 {[%clk 0:00:11]}  Ne7 {[%clk 0:00:05]} 56. Bc4 {[%clk 0:00:10]}  Nc6 {[%clk 0:00:03]} 57. Ke4 {[%clk 0:00:09]}  Ke7 {[%clk 0:00:03]} 58. Bb5 {[%clk 0:00:10]}  Nb4 {[%clk 0:00:03]} 59. Ke3 {[%clk 0:00:09]}  Nd5+ {[%clk 0:00:03]} 60. Kd3 {[%clk 0:00:09]}  Nf4+ {[%clk 0:00:03]} 61. Kc4 {[%clk 0:00:09]}  Nd5 {[%clk 0:00:04]} 62. Kc5 {[%clk 0:00:10]}  Ne3 {[%clk 0:00:03]} 63. Bc4 {[%clk 0:00:09]}  Nf5 {[%clk 0:00:03]} 64. Bd3 {[%clk 0:00:09]}  Ne3 {[%clk 0:00:03]} 65. Kb4 {[%clk 0:00:09]}  Nd5+ {[%clk 0:00:03]} 66. Kc4 {[%clk 0:00:09]}  Nb6+ {[%clk 0:00:03]} 67. Kc5 {[%clk 0:00:09]}  Nd5 {[%clk 0:00:04]} 68. Be4 {[%clk 0:00:09]}  Nf4 {[%clk 0:00:04]} 69. Kc4 {[%clk 0:00:07]}  Nh5 {[%clk 0:00:04]} 70. Kc3 {[%clk 0:00:07]}  Ng7 {[%clk 0:00:04]} 71. Bg6 {[%clk 0:00:07]}  Kf8 {[%clk 0:00:02]} 72. Kb4 {[%clk 0:00:07]}  Ke7 {[%clk 0:00:03]} 73. Kc5 {[%clk 0:00:07]}  Kd7 {[%clk 0:00:03]} 74. Kb6 {[%clk 0:00:07]}  Kd8 {[%clk 0:00:02]} 75. Kc6 {[%clk 0:00:07]}  Ke7 {[%clk 0:00:02]} 76. Kc7 {[%clk 0:00:07]} 1-0


[Site "https://www.chess.com"]

[Event "Titled Tuesday Blitz October 26 2021"]
[White "Beerdsen, Thomas"]
[Black "Hakobyan, Aram"]
[WhiteFideId "1030108"]
[BlackFideId "13306677"]
[WhiteElo "2585"]
[BlackElo "2557"]
[Result "1-0"]
[Round "08"]
[TimeControl "180+1"]
[Date "2021.10.26"]
[WhiteClock "0:00:04"]
[BlackClock "0:00:03"]

1. h3 {[%clk 0:02:53]}  d5 {[%clk 0:02:59]} 2. g4 {[%clk 0:02:54]}  e5 {[%clk 0:02:57]} 3. Bg2 {[%clk 0:02:54]}  h5 {[%clk 0:02:57]} 4. g5 {[%clk 0:02:54]}  c6 {[%clk 0:02:50]} 5. d4 {[%clk 0:02:53]}  e4 {[%clk 0:02:47]} 6. c4 {[%clk 0:02:53]}  Bd6 {[%clk 0:02:41]} 7. Nc3 {[%clk 0:02:49]}  Ne7 {[%clk 0:02:41]} 8. h4 {[%clk 0:02:42]}  Bg4 {[%clk 0:02:34]} 9. Qb3 {[%clk 0:02:40]}  Na6 {[%clk 0:02:29]} 10. Qxb7 {[%clk 0:02:29]}  Nb4 {[%clk 0:02:26]} 11. c5 {[%clk 0:02:19]}  Rb8 {[%clk 0:02:17]} 12. Qxa7 {[%clk 0:02:12]}  Bc7 {[%clk 0:02:04]} 13. Qa4 {[%clk 0:02:10]}  O-O {[%clk 0:01:37]} 14. a3 {[%clk 0:02:09]}  Na6 {[%clk 0:01:36]} 15. Nh3 {[%clk 0:01:51]}  Ra8 {[%clk 0:01:32]} 16. Qc2 {[%clk 0:01:44]}  Nf5 {[%clk 0:01:30]} 17. Qd1 {[%clk 0:01:34]}  Nb4 {[%clk 0:01:22]} 18. Ng1 {[%clk 0:01:20]}  Nd3+ {[%clk 0:01:11]} 19. Kf1 {[%clk 0:01:20]}  Bg3 {[%clk 0:01:10]} 20. Nh3 {[%clk 0:01:02]}  Bxh4 {[%clk 0:01:00]} 21. Qc2 {[%clk 0:00:52]}  Nxd4 {[%clk 0:00:53]} 22. Qd1 {[%clk 0:00:52]}  Nf5 {[%clk 0:00:42]} 23. Qc2 {[%clk 0:00:51]}  Nxc5 {[%clk 0:00:37]} 24. Nf4 {[%clk 0:00:48]}  Bxg5 {[%clk 0:00:33]} 25. Nxh5 {[%clk 0:00:46]}  Ne6 {[%clk 0:00:15]} 26. b4 {[%clk 0:00:26]}  g6 {[%clk 0:00:14]} 27. Bxg5 {[%clk 0:00:14]}  Qxg5 {[%clk 0:00:15]} 28. Bxe4 {[%clk 0:00:13]}  Ned4 {[%clk 0:00:07]} 29. Qd3 {[%clk 0:00:12]}  Bxh5 {[%clk 0:00:07]} 30. Bg2 {[%clk 0:00:09]}  Ne6 {[%clk 0:00:06]} 31. Rg1 {[%clk 0:00:07]}  Qf6 {[%clk 0:00:06]} 32. Rc1 {[%clk 0:00:07]}  Kg7 {[%clk 0:00:05]} 33. b5 {[%clk 0:00:05]}  Rxa3 {[%clk 0:00:05]} 34. bxc6 {[%clk 0:00:05]}  Nf4 {[%clk 0:00:06]} 35. Qd2 {[%clk 0:00:04]}  Nxg2 {[%clk 0:00:05]} 36. Rxg2 {[%clk 0:00:05]}  Qxc6 {[%clk 0:00:03]} 37. Nxd5 {[%clk 0:00:04]}  Ra4 {[%clk 0:00:03]} 38. Rxc6 {[%clk 0:00:04]}  Ra1+ {[%clk 0:00:03]} 39. Rc1 {[%clk 0:00:04]}  Rfa8 {[%clk 0:00:03]} 40. Qb2+ {[%clk 0:00:04]} 1-0


[Site "https://www.chess.com"]

[Event "Titled Tuesday Blitz October 26 2021"]
[White "Cardoso Cardoso, Jose Gabriel"]
[Black "Potapova, Margarita"]
[WhiteFideId "4430492"]
[BlackFideId "14126869"]
[WhiteElo "2343"]
[BlackElo "2214"]
[Result "1/2-1/2"]
[Round "08"]
[TimeControl "180+1"]
[Date "2021.10.26"]
[WhiteClock "0:00:09"]
[BlackClock "0:00:08"]

1. d4 {[%clk 0:03:00]}  Nf6 {[%clk 0:02:59]} 2. Nc3 {[%clk 0:02:58]}  d5 {[%clk 0:02:59]} 3. Bf4 {[%clk 0:02:59]}  c5 {[%clk 0:02:56]} 4. e3 {[%clk 0:02:58]}  cxd4 {[%clk 0:02:53]} 5. exd4 {[%clk 0:02:59]}  a6 {[%clk 0:02:53]} 6. Nf3 {[%clk 0:02:59]}  Nc6 {[%clk 0:02:49]} 7. Ne5 {[%clk 0:02:58]}  e6 {[%clk 0:02:49]} 8. Nxc6 {[%clk 0:02:57]}  bxc6 {[%clk 0:02:50]} 9. Bd3 {[%clk 0:02:57]}  Bd6 {[%clk 0:02:50]} 10. Bxd6 {[%clk 0:02:55]}  Qxd6 {[%clk 0:02:51]} 11. Na4 {[%clk 0:02:55]}  O-O {[%clk 0:02:49]} 12. O-O {[%clk 0:02:54]}  Nd7 {[%clk 0:02:47]} 13. Qh5 {[%clk 0:02:49]}  g6 {[%clk 0:02:46]} 14. Qg5 {[%clk 0:02:44]}  c5 {[%clk 0:02:44]} 15. dxc5 {[%clk 0:02:37]}  Nxc5 {[%clk 0:02:45]} 16. Nxc5 {[%clk 0:02:35]}  Qxc5 {[%clk 0:02:46]} 17. Qf6 {[%clk 0:02:33]}  Re8 {[%clk 0:02:35]} 18. c3 {[%clk 0:02:31]}  Qe7 {[%clk 0:02:36]} 19. Qxe7 {[%clk 0:02:26]}  Rxe7 {[%clk 0:02:35]} 20. f4 {[%clk 0:02:27]}  a5 {[%clk 0:02:31]} 21. Kf2 {[%clk 0:02:25]}  Ba6 {[%clk 0:02:27]} 22. Ke3 {[%clk 0:02:24]}  Bxd3 {[%clk 0:02:26]} 23. Kxd3 {[%clk 0:02:24]}  Rb8 {[%clk 0:02:27]} 24. b3 {[%clk 0:02:23]}  Kg7 {[%clk 0:02:26]} 25. a3 {[%clk 0:02:22]}  f6 {[%clk 0:02:17]} 26. b4 {[%clk 0:02:22]}  e5 {[%clk 0:02:14]} 27. fxe5 {[%clk 0:02:18]}  fxe5 {[%clk 0:02:15]} 28. Rab1 {[%clk 0:02:16]}  axb4 {[%clk 0:02:09]} 29. axb4 {[%clk 0:02:13]}  Rc8 {[%clk 0:01:55]} 30. b5 {[%clk 0:02:12]}  Rc5 {[%clk 0:01:55]} 31. Rb3 {[%clk 0:02:03]}  Rb7 {[%clk 0:01:53]} 32. Rfb1 {[%clk 0:02:01]}  Rb6 {[%clk 0:01:54]} 33. Rb4 {[%clk 0:01:54]}  Kf6 {[%clk 0:01:49]} 34. h3 {[%clk 0:01:50]}  Ke6 {[%clk 0:01:49]} 35. R4b3 {[%clk 0:01:47]}  e4+ {[%clk 0:01:42]} 36. Ke3 {[%clk 0:01:47]}  Ke5 {[%clk 0:01:41]} 37. Kd2 {[%clk 0:01:35]}  h5 {[%clk 0:01:26]} 38. Ke2 {[%clk 0:01:27]}  g5 {[%clk 0:01:25]} 39. R1b2 {[%clk 0:01:21]}  h4 {[%clk 0:01:24]} 40. Rb1 {[%clk 0:01:20]}  Rc8 {[%clk 0:01:15]} 41. Ra3 {[%clk 0:01:17]}  Rcb8 {[%clk 0:01:07]} 42. Rab3 {[%clk 0:01:16]}  Kd6 {[%clk 0:01:07]} 43. g3 {[%clk 0:00:55]}  Kc5 {[%clk 0:01:04]} 44. gxh4 {[%clk 0:00:54]}  gxh4 {[%clk 0:01:05]} 45. Rg1 {[%clk 0:00:47]}  Rxb5 {[%clk 0:01:05]} 46. Rxb5+ {[%clk 0:00:48]}  Rxb5 {[%clk 0:00:59]} 47. Rg8 {[%clk 0:00:48]}  Rb2+ {[%clk 0:00:57]} 48. Ke3 {[%clk 0:00:48]}  Rh2 {[%clk 0:00:57]} 49. Rc8+ {[%clk 0:00:47]}  Kb5 {[%clk 0:00:48]} 50. Kd4 {[%clk 0:00:34]}  Rd2+ {[%clk 0:00:47]} 51. Ke5 {[%clk 0:00:32]}  e3 {[%clk 0:00:45]} 52. Kf4 {[%clk 0:00:25]}  e2 {[%clk 0:00:44]} 53. Re8 {[%clk 0:00:24]}  Kc4 {[%clk 0:00:44]} 54. Re3 {[%clk 0:00:25]}  Rc2 {[%clk 0:00:31]} 55. Kg4 {[%clk 0:00:24]}  d4 {[%clk 0:00:28]} 56. cxd4 {[%clk 0:00:20]}  Kxd4 {[%clk 0:00:29]} 57. Re8 {[%clk 0:00:20]}  Kd3 {[%clk 0:00:29]} 58. Kxh4 {[%clk 0:00:19]}  Rc4+ {[%clk 0:00:29]} 59. Kg3 {[%clk 0:00:19]}  Kd2 {[%clk 0:00:22]} 60. Rd8+ {[%clk 0:00:16]}  Ke1 {[%clk 0:00:22]} 61. h4 {[%clk 0:00:15]}  Kf1 {[%clk 0:00:22]} 62. Rf8+ {[%clk 0:00:14]}  Kg1 {[%clk 0:00:22]} 63. Re8 {[%clk 0:00:14]}  Kf1 {[%clk 0:00:14]} 64. Rf8+ {[%clk 0:00:13]}  Kg1 {[%clk 0:00:14]} 65. Re8 {[%clk 0:00:14]}  Rc2 {[%clk 0:00:14]} 66. h5 {[%clk 0:00:13]}  Kf1 {[%clk 0:00:13]} 67. Rf8+ {[%clk 0:00:13]}  Kg1 {[%clk 0:00:11]} 68. Re8 {[%clk 0:00:13]}  Rc3+ {[%clk 0:00:06]} 69. Kg4 {[%clk 0:00:11]}  Kf2 {[%clk 0:00:07]} 70. Rf8+ {[%clk 0:00:09]}  Kg2 {[%clk 0:00:07]} 71. Re8 {[%clk 0:00:09]}  Kf2 {[%clk 0:00:07]} 72. Rf8+ {[%clk 0:00:09]}  Kg2 {[%clk 0:00:08]} 73. Re8 {[%clk 0:00:09]}  Kf2 {[%clk 0:00:08]} 1/2-1/2


[Site "https://www.chess.com"]

[Event "Titled Tuesday Blitz October 26 2021"]
[White "Demidov, Mikhail"]
[Black "Mirzoev, Azer"]
[WhiteFideId "4197143"]
[BlackFideId "13400304"]
[WhiteElo "2527"]
[BlackElo "2525"]
[Result "1-0"]
[Round "08"]
[TimeControl "180+1"]
[Date "2021.10.26"]
[WhiteClock "0:02:31"]
[BlackClock "0:00:28"]

1. Nf3 {[%clk 0:03:00]}  d5 {[%clk 0:02:59]} 2. g3 {[%clk 0:03:01]}  Nf6 {[%clk 0:02:59]} 3. Bg2 {[%clk 0:03:01]}  c6 {[%clk 0:02:58]} 4. O-O {[%clk 0:03:01]}  Bg4 {[%clk 0:02:58]} 5. Ne5 {[%clk 0:03:01]}  Bh5 {[%clk 0:02:58]} 6. d4 {[%clk 0:03:01]}  Nbd7 {[%clk 0:02:57]} 7. c4 {[%clk 0:03:02]}  e6 {[%clk 0:02:56]} 8. Nc3 {[%clk 0:03:01]}  Be7 {[%clk 0:02:52]} 9. Qb3 {[%clk 0:03:01]}  Qb6 {[%clk 0:02:50]} 10. Nxd7 {[%clk 0:03:01]}  Nxd7 {[%clk 0:02:49]} 11. e4 {[%clk 0:03:01]}  dxe4 {[%clk 0:02:44]} 12. Nxe4 {[%clk 0:03:02]}  Nf6 {[%clk 0:02:41]} 13. Nc5 {[%clk 0:03:00]}  O-O {[%clk 0:02:39]} 14. Be3 {[%clk 0:02:50]}  Qxb3 {[%clk 0:02:31]} 15. axb3 {[%clk 0:02:49]}  Bxc5 {[%clk 0:02:28]} 16. dxc5 {[%clk 0:02:50]}  Bg6 {[%clk 0:02:17]} 17. b4 {[%clk 0:02:49]}  Be4 {[%clk 0:02:07]} 18. f3 {[%clk 0:02:48]}  Bd3 {[%clk 0:02:07]} 19. Rfc1 {[%clk 0:02:48]}  Rfd8 {[%clk 0:02:05]} 20. Rc3 {[%clk 0:02:47]}  a6 {[%clk 0:01:58]} 21. Bf4 {[%clk 0:02:46]}  h6 {[%clk 0:01:50]} 22. Bd6 {[%clk 0:02:42]}  Bg6 {[%clk 0:01:48]} 23. Kf2 {[%clk 0:02:32]}  Ne8 {[%clk 0:01:45]} 24. Bf4 {[%clk 0:02:32]}  e5 {[%clk 0:00:28]} 25. Be3 {[%clk 0:02:31]} 1-0


[Site "https://www.chess.com"]

[Event "Titled Tuesday Blitz October 26 2021"]
[White "Gaehwiler, Gabriel"]
[Black "Koellner, Ruben Gideon"]
[WhiteFideId "1314530"]
[BlackFideId "12993093"]
[WhiteElo "2320"]
[BlackElo "2590"]
[Result "1-0"]
[Round "08"]
[TimeControl "180+1"]
[Date "2021.10.26"]
[WhiteClock "0:00:14"]
[BlackClock "0:00:15"]

1. d4 {[%clk 0:03:00]}  d6 {[%clk 0:03:00]} 2. g3 {[%clk 0:03:00]}  g6 {[%clk 0:03:00]} 3. Nf3 {[%clk 0:02:59]}  Bg7 {[%clk 0:03:01]} 4. Bg2 {[%clk 0:03:00]}  e5 {[%clk 0:02:59]} 5. dxe5 {[%clk 0:03:00]}  dxe5 {[%clk 0:03:00]} 6. Qxd8+ {[%clk 0:03:00]}  Kxd8 {[%clk 0:03:01]} 7. O-O {[%clk 0:03:00]}  c6 {[%clk 0:03:01]} 8. Rd1+ {[%clk 0:03:00]}  Kc7 {[%clk 0:03:00]} 9. Nbd2 {[%clk 0:02:50]}  f6 {[%clk 0:02:54]} 10. b3 {[%clk 0:02:37]}  Be6 {[%clk 0:02:38]} 11. Ba3 {[%clk 0:02:36]}  Nd7 {[%clk 0:02:38]} 12. Ne4 {[%clk 0:02:34]}  Bf8 {[%clk 0:02:39]} 13. Bxf8 {[%clk 0:02:15]}  Rxf8 {[%clk 0:02:40]} 14. Ne1 {[%clk 0:02:15]}  Ne7 {[%clk 0:02:36]} 15. Rd6 {[%clk 0:01:57]}  Bd5 {[%clk 0:02:23]} 16. Rd1 {[%clk 0:01:56]}  Nc8 {[%clk 0:02:22]} 17. Rxd7+ {[%clk 0:01:56]}  Kxd7 {[%clk 0:02:20]} 18. c4 {[%clk 0:01:57]}  f5 {[%clk 0:02:05]} 19. Nc3 {[%clk 0:01:50]}  Ne7 {[%clk 0:02:01]} 20. cxd5 {[%clk 0:01:48]}  cxd5 {[%clk 0:01:59]} 21. Nxd5 {[%clk 0:01:37]}  Nxd5 {[%clk 0:01:59]} 22. Rxd5+ {[%clk 0:01:35]}  Ke6 {[%clk 0:01:58]} 23. Nd3 {[%clk 0:01:17]}  e4 {[%clk 0:01:57]} 24. Nf4+ {[%clk 0:01:18]}  Kf6 {[%clk 0:01:56]} 25. Rb5 {[%clk 0:01:14]}  b6 {[%clk 0:01:54]} 26. h4 {[%clk 0:01:10]}  Rc8 {[%clk 0:01:51]} 27. a4 {[%clk 0:01:10]}  Rhd8 {[%clk 0:01:47]} 28. a5 {[%clk 0:01:00]}  Rc5 {[%clk 0:01:36]} 29. Rxc5 {[%clk 0:00:57]}  bxc5 {[%clk 0:01:37]} 30. f3 {[%clk 0:00:57]}  Rd1+ {[%clk 0:01:17]} 31. Kf2 {[%clk 0:00:57]}  Ke5 {[%clk 0:00:51]} 32. fxe4 {[%clk 0:00:54]}  fxe4 {[%clk 0:00:52]} 33. Ke3 {[%clk 0:00:53]}  Rd4 {[%clk 0:00:52]} 34. Bh3 {[%clk 0:00:45]}  Rb4 {[%clk 0:00:49]} 35. Be6 {[%clk 0:00:45]}  Rb5 {[%clk 0:00:43]} 36. a6 {[%clk 0:00:44]}  Rb6 {[%clk 0:00:32]} 37. Bc4 {[%clk 0:00:44]}  Rd6 {[%clk 0:00:26]} 38. Nh3 {[%clk 0:00:40]}  Rd4 {[%clk 0:00:21]} 39. Nf2 {[%clk 0:00:23]}  Kf5 {[%clk 0:00:17]} 40. g4+ {[%clk 0:00:21]}  Ke5 {[%clk 0:00:17]} 41. Nh3 {[%clk 0:00:20]}  h6 {[%clk 0:00:16]} 42. g5 {[%clk 0:00:18]}  hxg5 {[%clk 0:00:14]} 43. Nxg5 {[%clk 0:00:18]}  Kf5 {[%clk 0:00:14]} 44. Nf7 {[%clk 0:00:16]}  Kg4 {[%clk 0:00:13]} 45. Ne5+ {[%clk 0:00:17]}  Kh5 {[%clk 0:00:12]} 46. Nc6 {[%clk 0:00:16]}  Rd6 {[%clk 0:00:12]} 47. Nxa7 {[%clk 0:00:16]}  Kxh4 {[%clk 0:00:12]} 48. Nc8 {[%clk 0:00:16]}  Rd8 {[%clk 0:00:11]} 49. Nb6 {[%clk 0:00:16]}  g5 {[%clk 0:00:09]} 50. a7 {[%clk 0:00:16]}  g4 {[%clk 0:00:09]} 51. a8=Q {[%clk 0:00:15]}  Rxa8 {[%clk 0:00:10]} 52. Nxa8 {[%clk 0:00:15]}  g3 {[%clk 0:00:11]} 53. Bd5 {[%clk 0:00:13]}  g2 {[%clk 0:00:09]} 54. Kf2 {[%clk 0:00:13]}  e3+ {[%clk 0:00:03]} 55. Kxg2 {[%clk 0:00:12]}  Kg4 {[%clk 0:00:04]} 56. Nb6 {[%clk 0:00:11]}  Kf4 {[%clk 0:00:05]} 57. Bf3 {[%clk 0:00:11]}  Ke5 {[%clk 0:00:06]} 58. Nc4+ {[%clk 0:00:11]}  Kd4 {[%clk 0:00:07]} 59. Kg3 {[%clk 0:00:10]}  Kc3 {[%clk 0:00:08]} 60. Nxe3 {[%clk 0:00:10]}  Kd2 {[%clk 0:00:09]} 61. Kf4 {[%clk 0:00:11]}  Kc3 {[%clk 0:00:09]} 62. Nd5+ {[%clk 0:00:10]}  Kxb3 {[%clk 0:00:09]} 63. e4 {[%clk 0:00:11]}  c4 {[%clk 0:00:09]} 64. e5 {[%clk 0:00:12]}  c3 {[%clk 0:00:10]} 65. Nxc3 {[%clk 0:00:12]}  Kxc3 {[%clk 0:00:11]} 66. e6 {[%clk 0:00:12]}  Kd4 {[%clk 0:00:12]} 67. e7 {[%clk 0:00:13]}  Kc5 {[%clk 0:00:13]} 68. e8=Q {[%clk 0:00:13]}  Kd6 {[%clk 0:00:13]} 69. Qc6+ {[%clk 0:00:13]}  Ke7 {[%clk 0:00:13]} 70. Ke5 {[%clk 0:00:14]}  Kf7 {[%clk 0:00:14]} 71. Qf6+ {[%clk 0:00:13]}  Kg8 {[%clk 0:00:14]} 72. Qg5+ {[%clk 0:00:13]}  Kf7 {[%clk 0:00:13]} 73. Bh5+ {[%clk 0:00:13]}  Kf8 {[%clk 0:00:14]} 74. Qf6+ {[%clk 0:00:13]}  Kg8 {[%clk 0:00:14]} 75. Bf7+ {[%clk 0:00:13]}  Kh7 {[%clk 0:00:14]} 76. Qg6+ {[%clk 0:00:13]}  Kh8 {[%clk 0:00:15]} 77. Qh6# {[%clk 0:00:14]} 1-0


[Site "https://www.chess.com"]

[Event "Titled Tuesday Blitz October 26 2021"]
[White "Kobalia, Mikhail"]
[Black "Jobava, Baadur"]
[WhiteFideId "4119150"]
[BlackFideId "13601520"]
[WhiteElo "2590"]
[BlackElo "2731"]
[Result "0-1"]
[Round "08"]
[TimeControl "180+1"]
[Date "2021.10.26"]
[WhiteClock "0:00:01"]
[BlackClock "0:00:11"]

1. e4 {[%clk 0:02:59]}  e6 {[%clk 0:03:00]} 2. d3 {[%clk 0:02:56]}  d5 {[%clk 0:03:01]} 3. Nd2 {[%clk 0:02:56]}  c5 {[%clk 0:02:58]} 4. Ngf3 {[%clk 0:02:56]}  Nc6 {[%clk 0:02:59]} 5. g3 {[%clk 0:02:57]}  g6 {[%clk 0:02:59]} 6. Bg2 {[%clk 0:02:57]}  Bg7 {[%clk 0:03:00]} 7. O-O {[%clk 0:02:57]}  Nge7 {[%clk 0:03:01]} 8. Re1 {[%clk 0:02:58]}  O-O {[%clk 0:03:00]} 9. c3 {[%clk 0:02:57]}  b5 {[%clk 0:03:00]} 10. exd5 {[%clk 0:02:54]}  exd5 {[%clk 0:02:53]} 11. Nb3 {[%clk 0:02:47]}  c4 {[%clk 0:02:54]} 12. Nc5 {[%clk 0:02:40]}  cxd3 {[%clk 0:02:36]} 13. Nxd3 {[%clk 0:02:36]}  a5 {[%clk 0:02:29]} 14. Nde5 {[%clk 0:02:34]}  b4 {[%clk 0:02:20]} 15. Nxc6 {[%clk 0:02:23]}  Nxc6 {[%clk 0:02:20]} 16. Bg5 {[%clk 0:02:23]}  Qd7 {[%clk 0:02:02]} 17. Nd4 {[%clk 0:02:14]}  Ne5 {[%clk 0:02:01]} 18. h3 {[%clk 0:01:49]}  Ba6 {[%clk 0:01:53]} 19. Re3 {[%clk 0:01:18]}  Rfe8 {[%clk 0:01:43]} 20. Nb3 {[%clk 0:01:10]}  Bc4 {[%clk 0:01:36]} 21. Nd2 {[%clk 0:00:59]}  Bb5 {[%clk 0:01:35]} 22. Nb3 {[%clk 0:00:58]}  Bc6 {[%clk 0:01:03]} 23. Nd4 {[%clk 0:00:45]}  Bb7 {[%clk 0:01:01]} 24. a3 {[%clk 0:00:22]}  bxc3 {[%clk 0:00:49]} 25. bxc3 {[%clk 0:00:22]}  h6 {[%clk 0:00:37]} 26. Bf4 {[%clk 0:00:22]}  Nc4 {[%clk 0:00:37]} 27. Rxe8+ {[%clk 0:00:21]}  Rxe8 {[%clk 0:00:38]} 28. a4 {[%clk 0:00:22]}  g5 {[%clk 0:00:19]} 29. Bc1 {[%clk 0:00:21]}  Nd6 {[%clk 0:00:19]} 30. Rb1 {[%clk 0:00:20]}  Ne4 {[%clk 0:00:19]} 31. Qc2 {[%clk 0:00:18]}  Rc8 {[%clk 0:00:17]} 32. Bxe4 {[%clk 0:00:13]}  dxe4 {[%clk 0:00:17]} 33. Be3 {[%clk 0:00:12]}  Bd5 {[%clk 0:00:15]} 34. Qe2 {[%clk 0:00:10]}  Qxh3 {[%clk 0:00:13]} 35. Nb5 {[%clk 0:00:07]}  Be6 {[%clk 0:00:11]} 36. Rc1 {[%clk 0:00:05]}  Bg4 {[%clk 0:00:11]} 37. Qf1 {[%clk 0:00:06]}  Qh5 {[%clk 0:00:12]} 38. Qg2 {[%clk 0:00:04]}  Bf3 {[%clk 0:00:12]} 39. Qh2 {[%clk 0:00:05]}  Qg4 {[%clk 0:00:12]} 40. c4 {[%clk 0:00:05]}  h5 {[%clk 0:00:12]} 41. c5 {[%clk 0:00:05]}  Be5 {[%clk 0:00:11]} 42. c6 {[%clk 0:00:04]}  h4 {[%clk 0:00:11]} 43. Na7 {[%clk 0:00:01]}  hxg3 {[%clk 0:00:11]} 0-1


[Site "https://www.chess.com"]

[Event "Titled Tuesday Blitz October 26 2021"]
[White "Martinez Alcantara, Jose Eduardo"]
[Black "Bacrot, Etienne"]
[WhiteFideId "3805662"]
[BlackFideId "605506"]
[WhiteElo "2690"]
[BlackElo "2673"]
[Result "1-0"]
[Round "08"]
[TimeControl "180+1"]
[Date "2021.10.26"]
[WhiteClock "0:00:04"]
[BlackClock "0:00:17"]

1. e4 {[%clk 0:03:00]}  e5 {[%clk 0:02:58]} 2. Nf3 {[%clk 0:03:01]}  Nc6 {[%clk 0:02:59]} 3. Bb5 {[%clk 0:03:01]}  Nf6 {[%clk 0:02:59]} 4. d3 {[%clk 0:03:01]}  Bc5 {[%clk 0:02:58]} 5. O-O {[%clk 0:03:02]}  Nd4 {[%clk 0:02:58]} 6. Be3 {[%clk 0:03:02]}  Nxf3+ {[%clk 0:02:56]} 7. Qxf3 {[%clk 0:03:03]}  Bxe3 {[%clk 0:02:56]} 8. fxe3 {[%clk 0:03:04]}  Qe7 {[%clk 0:02:54]} 9. Nc3 {[%clk 0:02:59]}  c6 {[%clk 0:02:54]} 10. Bc4 {[%clk 0:02:59]}  d6 {[%clk 0:02:52]} 11. h3 {[%clk 0:02:53]}  Be6 {[%clk 0:02:51]} 12. Rf2 {[%clk 0:02:50]}  Rd8 {[%clk 0:02:34]} 13. Raf1 {[%clk 0:02:33]}  O-O {[%clk 0:02:22]} 14. Qg3 {[%clk 0:02:23]}  Nh5 {[%clk 0:02:09]} 15. Qf3 {[%clk 0:02:23]}  Nf6 {[%clk 0:02:09]} 16. Bb3 {[%clk 0:02:24]}  Kh8 {[%clk 0:01:55]} 17. Ne2 {[%clk 0:02:14]}  d5 {[%clk 0:01:54]} 18. exd5 {[%clk 0:02:13]}  cxd5 {[%clk 0:01:49]} 19. Qg3 {[%clk 0:02:02]}  Qd6 {[%clk 0:01:40]} 20. Qh4 {[%clk 0:01:53]}  Ng8 {[%clk 0:01:28]} 21. d4 {[%clk 0:01:36]}  exd4 {[%clk 0:00:54]} 22. Nxd4 {[%clk 0:01:17]}  Ne7 {[%clk 0:00:53]} 23. Nxe6 {[%clk 0:00:44]}  Qxe6 {[%clk 0:00:53]} 24. e4 {[%clk 0:00:44]}  Ng6 {[%clk 0:00:29]} 25. exd5 {[%clk 0:00:37]}  Qe5 {[%clk 0:00:29]} 26. Qb4 {[%clk 0:00:31]}  f5 {[%clk 0:00:22]} 27. c3 {[%clk 0:00:28]}  f4 {[%clk 0:00:23]} 28. Bc2 {[%clk 0:00:19]}  Nh4 {[%clk 0:00:22]} 29. Rxf4 {[%clk 0:00:12]}  Qe3+ {[%clk 0:00:23]} 30. Kh2 {[%clk 0:00:12]}  Qe5 {[%clk 0:00:22]} 31. Qd4 {[%clk 0:00:08]}  Qd6 {[%clk 0:00:22]} 32. g3 {[%clk 0:00:07]}  Ng6 {[%clk 0:00:15]} 33. Bxg6 {[%clk 0:00:07]}  hxg6 {[%clk 0:00:16]} 34. Rxf8+ {[%clk 0:00:05]}  Rxf8 {[%clk 0:00:16]} 35. Rxf8+ {[%clk 0:00:05]}  Qxf8 {[%clk 0:00:17]} 36. d6 {[%clk 0:00:05]}  Qf3 {[%clk 0:00:18]} 37. Qd2 {[%clk 0:00:05]}  Qf4 {[%clk 0:00:17]} 38. gxf4 {[%clk 0:00:04]} 1-0


[Site "https://www.chess.com"]